bitfinex/quotes_BTCUSD_20240905
["timestamp","ask_amount","ask_price","bid_price","bid_amount"]
[1725506713284,0.5,57354.0,57353.0,0.25961087]
[1725506713508,0.5,57354.0,57353.0,0.27961087]
[1725506713745,0.5,57354.0,57353.0,0.27861087]
[1725506714224,0.5,57354.0,57353.0,0.16087]
[1725506715605,0.6719017,57354.0,57353.0,0.15987]
[1725506715840,0.5,57354.0,57353.0,0.15987]
[1725506716118,0.500815,57354.0,57353.0,0.16187]
[1725506716336,0.500815,57354.0,57353.0,0.27690512]
[1725506716595,0.500815,57354.0,57353.0,0.28039087]
[1725506716820,0.000815,57354.0,57353.0,0.27939087]
[1725506717291,0.000815,57354.0,57353.0,0.28039087]
[1725506718573,0.000815,57354.0,57353.0,0.27939087]
[1725506718777,0.012815,57354.0,57353.0,0.27839087]
[1725506719401,0.000815,57354.0,57353.0,0.27739087]
[1725506719613,0.000815,57354.0,57353.0,0.27827467]
[1725506719841,0.012815,57354.0,57353.0,0.27927467]
[1725506720065,0.000815,57357.0,57355.0,0.03507]
[1725506720268,0.86191371,57357.0,57356.0,0.29421916]
[1725506720475,0.86191371,57357.0,57356.0,0.2916178]
[1725506720895,0.86191371,57357.0,57356.0,0.2896178]
[1725506721095,0.86191371,57357.0,57356.0,0.2916178]
[1725506721514,0.000815,57357.0,57356.0,0.2896178]
[1725506721721,0.86191371,57357.0,57356.0,0.1347538]
[1725506721937,0.86191371,57357.0,57356.0,0.1447538]
[1725506721938,2.93903371,57357.0,57356.0,0.1447538]
[1725506722179,2.69191371,57357.0,57356.0,0.1447538]
[1725506722359,2.69091371,57357.0,57356.0,0.1447538]
[1725506722576,2.69091371,57357.0,57356.0,0.1427538]
[1725506722792,2.86381541,57357.0,57356.0,0.0369538]
[1725506723023,3.39353222,57357.0,57356.0,0.0369538]
[1725506723229,3.97713222,57357.0,57356.0,0.0359538]
[1725506723693,3.78473222,57357.0,57356.0,0.0359538]
[1725506723920,3.78473222,57357.0,57356.0,0.0008838]
[1725506724351,3.78473222,57357.0,57356.0,0.0359538]
[1725506724567,3.79873222,57357.0,57356.0,0.0359538]
[1725506724993,3.40653222,57357.0,57356.0,0.0394402]
[1725506725206,3.39253222,57357.0,57356.0,0.0359538]
[1725506725418,2.54543351,57357.0,57356.0,0.0359538]
[1725506726477,2.53143351,57357.0,57356.0,0.0359538]
[1725506726887,1.829815,57357.0,57356.0,0.0359538]
[1725506727917,1.843815,57357.0,57356.0,0.0359538]
[1725506729387,1.843815,57357.0,57356.0,0.22500016]
[1725506729608,1.843815,57357.0,57356.0,0.0459538]
[1725506730233,0.014815,57357.0,57356.0,0.0459538]
[1725506730436,0.862815,57357.0,57356.0,0.0459538]
[1725506730651,0.014815,57357.0,57356.0,0.0459538]
[1725506730857,0.000815,57357.0,57356.0,0.0479538]
[1725506731079,0.014815,57357.0,57356.0,0.0479538]
[1725506731701,0.000815,57357.0,57356.0,0.0479538]
[1725506731926,2.090935,57357.0,57356.0,0.0479538]
[1725506732416,2.10917517,57357.0,57356.0,0.0479538]
[1725506732624,2.09517517,57357.0,57356.0,0.0479538]
[1725506732979,2.10917517,57357.0,57356.0,0.0479538]
[1725506734028,2.10917517,57357.0,57356.0,0.0379538]
[1725506734250,2.09517517,57357.0,57356.0,0.0359538]
[1725506734392,2.47207517,57357.0,57356.0,0.0359538]
[1725506734596,2.50907517,57357.0,57356.0,0.0359538]
[1725506735040,2.49507517,57357.0,57356.0,0.0359538]
[1725506735473,2.50907517,57357.0,57356.0,0.0359538]
[1725506735675,2.50907517,57357.0,57356.0,0.02791691]
[1725506735887,2.49507517,57357.0,57356.0,0.02791691]
[1725506736122,2.50907517,57357.0,57356.0,0.02791691]
[1725506737338,3.17369368,57357.0,57356.0,0.02791691]
[1725506737777,3.18769368,57357.0,57356.0,0.02791691]
[1725506739994,3.18769368,57357.0,57356.0,0.02954691]
[1725506740205,3.16469368,57357.0,57356.0,0.02954691]
[1725506740631,2.78779368,57357.0,57356.0,0.02954691]
[1725506741112,3.4415526,57357.0,57356.0,0.02954691]
[1725506741566,3.16439368,57357.0,57356.0,0.02954691]
[1725506742178,3.18739368,57357.0,57356.0,0.02954691]
[1725506745481,3.06444319,57357.0,57356.0,0.02954691]
[1725506745694,2.78779368,57357.0,57356.0,0.02954691]
[1725506750578,2.78769368,57357.0,57356.0,0.02954691]
[1725506750789,2.78769368,57357.0,57356.0,0.02259156]
[1725506751907,1.51396009,57357.0,57356.0,0.16091009]
[1725506752148,0.53295517,57357.0,57356.0,0.03459156]
[1725506752381,2.60907517,57357.0,57356.0,0.03459156]
[1725506753287,2.59507517,57357.0,57356.0,0.03459156]
[1725506753505,2.60907517,57357.0,57356.0,0.03459156]
[1725506754652,2.60907517,57357.0,57356.0,0.07496919]
[1725506754898,2.60907517,57357.0,57356.0,0.03459156]
[1725506757896,0.53295517,57357.0,57356.0,0.03459156]
[1725506758034,2.60907517,57357.0,57356.0,0.03459156]
[1725506758480,2.60907517,57357.0,57356.0,0.02259156]
[1725506760261,2.60907517,57357.0,57356.0,0.02459156]
[1725506760499,2.60907517,57357.0,57356.0,0.02259156]
[1725506760734,2.60907517,57357.0,57355.0,0.86555665]
[1725506760967,2.07612,57356.0,57355.0,0.86555665]
[1725506761168,2.07612,57356.0,57355.0,0.86755665]
[1725506762256,2.07612,57356.0,57355.0,0.86555665]
[1725506764158,2.07612,57356.0,57355.0,0.86718665]
[1725506764928,2.09012,57356.0,57355.0,0.86718665]
[1725506765709,2.09012,57356.0,57355.0,0.87718665]
[1725506766700,1.866351,57356.0,57355.0,0.87718665]
[1725506767724,1.866351,57356.0,57355.0,0.87918665]
[1725506768595,2.53544081,57356.0,57355.0,0.86718665]
[1725506768828,2.257651,57356.0,57355.0,0.86718665]
[1725506769033,2.53555126,57356.0,57355.0,0.86718665]
[1725506769458,2.71895126,57356.0,57355.0,0.86718665]
[1725506769685,2.814051,57356.0,57355.0,0.84894648]
[1725506770136,3.614051,57356.0,57355.0,0.84894648]
[1725506770788,3.63229117,57356.0,57355.0,0.84894648]
[1725506771243,2.81829117,57356.0,57355.0,0.84894648]
[1725506772156,3.12100539,57356.0,57355.0,0.84894648]
[1725506772361,2.81829117,57356.0,57355.0,0.84894648]
[1725506772577,3.13500539,57356.0,57355.0,0.84894648]
[1725506772801,3.13527217,57356.0,57355.0,0.76405184]
[1725506773017,3.12127217,57356.0,57355.0,0.76405184]
[1725506773236,3.92120196,57356.0,57355.0,0.76405184]
[1725506773453,3.93520196,57356.0,57355.0,0.76405184]
[1725506773908,3.93520196,57356.0,57355.0,0.54161558]
[1725506774132,3.63229117,57356.0,57355.0,0.54161558]
[1725506775428,3.63310617,57356.0,57355.0,0.54161558]
[1725506776066,3.63310617,57356.0,57355.0,0.52163187]
[1725506777208,3.05840617,57356.0,57353.0,1.63423]
[1725506777463,0.5828,57354.0,57353.0,1.63423]
[1725506777696,11.19921085,57354.0,57353.0,1.63423]
[1725506779955,11.21321085,57354.0,57353.0,1.63423]
[1725506780182,12.01321085,57354.0,57353.0,1.63423]
[1725506781605,12.09531125,57354.0,57353.0,1.63423]
[1725506782240,12.01321085,57354.0,57353.0,1.63423]
[1725506782456,11.99021085,57354.0,57353.0,1.63423]
[1725506783413,10.13785985,57354.0,57353.0,1.63423]
[1725506783609,11.99021085,57354.0,57353.0,1.63423]
[1725506783815,12.01321085,57354.0,57353.0,1.63423]
[1725506785300,12.02621085,57354.0,57353.0,1.63523]
[1725506786334,12.00321085,57354.0,57353.0,1.63523]
[1725506786569,5.8747062,57354.0,57353.0,1.63523]
[1725506786795,5.597851,57354.0,57353.0,1.63523]
[1725506787264,4.797851,57354.0,57353.0,1.63523]
[1725506787453,4.797851,57354.0,57353.0,1.51480272]
[1725506787705,4.797851,57354.0,57353.0,1.51643272]
[1725506788157,4.820851,57354.0,57353.0,1.51643272]
[1725506789641,5.204051,57354.0,57353.0,1.51643272]
[1725506795559,5.20303872,57354.0,57353.0,1.51643272]
[1725506797380,5.20303872,57354.0,57353.0,1.2755434]
[1725506798317,6.20273872,57354.0,57353.0,1.2755434]
[1725506799613,6.20355372,57354.0,57353.0,1.2755434]
[1725506801065,6.50565612,57354.0,57353.0,1.2755434]
[1725506801305,6.49165612,57354.0,57353.0,1.2755434]
[1725506801528,6.18955372,57354.0,57353.0,1.2755434]
[1725506801767,6.50564524,57354.0,57353.0,1.2755434]
[1725506801983,6.50564524,57354.0,57353.0,1.2745434]
[1725506801984,6.19055372,57354.0,57353.0,1.2745434]
[1725506802205,6.20455372,57354.0,57353.0,1.2745434]
[1725506802448,6.50664524,57354.0,57353.0,1.2745434]
[1725506803396,6.20455372,57354.0,57353.0,1.2745434]
[1725506805005,5.88743859,57354.0,57353.0,1.2745434]
[1725506806941,5.89963859,57354.0,57353.0,1.2745434]
[1725506810346,6.20173011,57354.0,57353.0,1.2745434]
[1725506812059,5.62097415,57354.0,57353.0,1.2745434]
[1725506815303,5.39164878,57354.0,57353.0,1.2745434]
[1725506816665,4.78574878,57354.0,57353.0,1.4549434]
[1725506816898,5.63574878,57354.0,57353.0,1.4549434]
[1725506817318,3.0214095,57354.0,57353.0,1.4549434]
[1725506817607,2.9934095,57354.0,57353.0,1.8457434]
[1725506817798,2.5101303,57354.0,57353.0,1.8823023]
[1725506818074,2.5241303,57354.0,57353.0,1.9273723]
[1725506818296,2.1601303,57354.0,57353.0,1.9273723]
[1725506818728,2.1741303,57354.0,57353.0,1.9273723]
[1725506819351,2.1601303,57354.0,57353.0,1.9273723]
[1725506819565,2.1741303,57354.0,57353.0,1.9273723]
[1725506820445,2.1601303,57354.0,57353.0,1.9273723]
[1725506820657,2.5101303,57354.0,57353.0,1.8557434]
[1725506820873,2.5241303,57354.0,57353.0,1.8928134]
[1725506821298,2.5241303,57354.0,57353.0,1.8908134]
[1725506822889,3.8093303,57354.0,57353.0,1.2745434]
[1725506824091,4.1869453,57354.0,57353.0,1.2745434]
[1725506824792,4.1729453,57354.0,57353.0,1.2745434]
[1725506825071,4.1589453,57354.0,57353.0,1.2745434]
[1725506825286,4.9869453,57354.0,57353.0,1.2745434]
[1725506825540,5.2897223,57354.0,57353.0,1.2745434]
[1725506825772,4.9869453,57354.0,57353.0,1.2745434]
[1725506826423,3.8101453,57354.0,57353.0,1.2745434]
[1725506827770,3.8101453,57354.0,57353.0,1.15411029]
[1725506829810,2.1766543,57354.0,57353.0,1.15411029]
[1725506830267,3.8101453,57354.0,57353.0,1.15411029]
[1725506834447,3.82838547,57354.0,57353.0,1.13587012]
[1725506835298,3.8101453,57354.0,57353.0,1.13587012]
[1725506837497,4.1877453,57354.0,57353.0,1.13587012]
[1725506839031,3.8101453,57354.0,57353.0,1.13587012]
[1725506839464,2.1766543,57354.0,57353.0,1.13587012]
[1725506839911,0.8914543,57354.0,57353.0,1.29381309]
[1725506840135,0.8914543,57354.0,57353.0,1.78794012]
[1725506841013,0.8634543,57354.0,57353.0,1.78794012]
[1725506841232,0.8774543,57354.0,57353.0,1.78794012]
[1725506841452,0.3792543,57354.0,57353.0,1.78794012]
[1725506841697,0.8792543,57354.0,57353.0,1.78794012]
[1725506841926,0.5292543,57354.0,57353.0,1.96350038]
[1725506842143,0.528815,57354.0,57353.0,1.98350038]
[1725506842352,0.78107023,57354.0,57353.0,1.98350038]
[1725506842564,0.528815,57354.0,57353.0,1.98350038]
[1725506843018,0.54705517,57354.0,57353.0,1.98350038]
[1725506843294,0.53305517,57354.0,57353.0,1.98350038]
[1725506844396,0.54705517,57354.0,57353.0,1.98350038]
[1725506850079,0.54705517,57354.0,57353.0,1.98550038]
[1725506850511,0.54705517,57354.0,57353.0,1.98350038]
[1725506852034,0.54705517,57354.0,57353.0,1.80794012]
[1725506853857,0.54705517,57354.0,57353.0,1.18294012]
[1725506854318,0.82457426,57354.0,57353.0,1.18294012]
[1725506854551,0.54705517,57354.0,57353.0,1.17094012]
[1725506854796,0.54705517,57354.0,57353.0,0.98750673]
[1725506855023,0.96115517,57354.0,57353.0,0.98750673]
[1725506855692,0.94715517,57354.0,57353.0,0.96878692]
[1725506855918,0.96115517,57354.0,57353.0,0.96878692]
[1725506856430,0.94715517,57354.0,57353.0,0.96878692]
[1725506856868,0.96115517,57354.0,57353.0,0.96878692]
[1725506857823,0.96115517,57354.0,57353.0,0.97078692]
[1725506859359,0.54705517,57354.0,57353.0,0.98078692]
[1725506862056,0.54705517,57354.0,57353.0,1.15634718]
[1725506863575,0.54705517,57354.0,57353.0,1.17634718]
[1725506867165,0.54705517,57354.0,57353.0,1.00078692]
[1725506867605,0.94185517,57354.0,57353.0,1.00078692]
[1725506867873,1.2185752,57354.0,57353.0,1.00078692]
[1725506868126,0.94185517,57354.0,57353.0,1.00078692]
[1725506868350,1.2185752,57354.0,57353.0,1.00078692]
[1725506868578,0.94185517,57354.0,57353.0,1.00078692]
[1725506868797,1.2185752,57354.0,57353.0,1.00078692]
[1725506869524,0.94185517,57354.0,57353.0,1.00078692]
[1725506870188,0.94185517,57354.0,57353.0,0.98078692]
[1725506870616,0.94185517,57354.0,57353.0,1.00078692]
[1725506871048,0.94185517,57354.0,57353.0,0.98078692]
[1725506871269,0.54705517,57354.0,57353.0,1.00078692]
[1725506871485,0.82417833,57354.0,57353.0,1.00078692]
[1725506871706,0.54705517,57354.0,57353.0,1.00078692]
[1725506874843,0.04624017,57354.0,57353.0,1.00078692]
[1725506875278,0.04624017,57354.0,57353.0,1.17634718]
[1725506875506,0.04624017,57354.0,57353.0,1.76084718]
[1725506875723,0.04624017,57354.0,57353.0,1.37234718]
[1725506876177,0.04624017,57354.0,57353.0,1.19678692]
[1725506876392,0.54624017,57354.0,57353.0,1.19678692]
[1725506880605,0.54624017,57354.0,57353.0,1.00078692]
[1725506881768,0.54705517,57354.0,57353.0,1.00078692]
[1725506885300,0.54705517,57354.0,57353.0,0.98078692]
[1725506885529,0.92715517,57354.0,57353.0,0.98078692]
[1725506885939,0.380915,57354.0,57353.0,0.98078692]
[1725506886397,0.89915517,57354.0,57353.0,0.98078692]
[1725506886818,0.92651886,57354.0,57353.0,1.00078692]
[1725506887019,0.54641886,57354.0,57353.0,1.00078692]
[1725506887241,0.52817869,57354.0,57353.0,1.00078692]
[1725506889696,0.52817869,57354.0,57353.0,0.98078692]
[1725506889911,0.52817869,57354.0,57353.0,1.00078692]
[1725506892657,0.52817869,57354.0,57353.0,1.17634718]
[1725506892939,0.52817869,57354.0,57353.0,1.00078692]
[1725506893154,0.02736369,57354.0,57353.0,1.00078692]
[1725506893593,0.52736369,57354.0,57353.0,1.00078692]
[1725506894033,0.78006557,57354.0,57353.0,1.00078692]
[1725506894462,0.78006557,57354.0,57353.0,1.17634718]
[1725506894975,0.52736369,57354.0,57353.0,1.17634718]
[1725506895198,0.52817869,57354.0,57353.0,1.00078692]
[1725506895429,0.78088057,57354.0,57353.0,1.00078692]
[1725506896107,0.52817869,57354.0,57353.0,1.00078692]
[1725506901775,0.93137869,57354.0,57353.0,1.00078692]
[1725506902434,0.93151372,57354.0,57353.0,1.00078692]
[1725506906923,0.52831372,57354.0,57353.0,1.17634718]
[1725506908995,0.52831372,57354.0,57353.0,1.00078692]
[1725506910982,1.11561372,57354.0,57353.0,0.96878692]
[1725506911201,1.41835211,57354.0,57353.0,0.96878692]
[1725506911423,1.11561372,57354.0,57353.0,0.97878692]
[1725506911673,2.37781372,57354.0,57353.0,0.96878692]
[1725506911893,2.40081372,57354.0,57353.0,0.93371692]
[1725506912334,2.40081372,57354.0,57353.0,0.83518936]
[1725506912754,2.37345003,57354.0,57353.0,0.83518936]
[1725506914084,2.40145003,57354.0,57353.0,0.83718936]
[1725506915461,2.40145003,57354.0,57353.0,1.01274962]
[1725506915675,2.40145003,57354.0,57353.0,0.83718936]
[1725506915676,2.37845003,57354.0,57353.0,0.83718936]
[1725506915892,2.37845003,57354.0,57353.0,0.84718936]
[1725506916072,1.11625003,57354.0,57353.0,0.84718936]
[1725506916300,1.14362286,57354.0,57353.0,0.84718936]
[1725506916505,1.14362286,57354.0,57353.0,0.84918936]
[1725506917993,1.12626676,57354.0,57353.0,0.84918936]
[1725506918425,1.11711804,57354.0,57353.0,0.84918936]
[1725506919501,0.92641804,57354.0,57353.0,1.05978962]
[1725506919929,0.55618783,57354.0,57353.0,1.05978962]
[1725506920435,0.54218783,57354.0,57353.0,1.05878962]
[1725506920870,0.54218783,57354.0,57353.0,1.07878962]
[1725506921300,0.55618783,57354.0,57353.0,1.07978962]
[1725506921510,0.80853583,57354.0,57353.0,1.07978962]
[1725506922353,0.54218783,57354.0,57353.0,1.07878962]
[1725506922556,0.04218783,57354.0,57353.0,1.07878962]
[1725506922968,0.54118783,57354.0,57353.0,1.07878962]
[1725506923175,0.54118783,57354.0,57353.0,1.07778962]
[1725506923383,0.55418783,57354.0,57353.0,1.07878962]
[1725506923591,0.55418783,57354.0,57353.0,1.07978962]
[1725506923592,0.56718783,57354.0,57353.0,1.07978962]
[1725506923797,0.52818783,57354.0,57353.0,1.07778962]
[1725506924227,0.55418783,57354.0,57353.0,1.07978962]
[1725506926747,0.8064872,57354.0,57353.0,1.07978962]
[1725506926947,0.7934872,57354.0,57353.0,1.07878962]
[1725506927240,0.8074872,57354.0,57353.0,1.07878962]
[1725506927452,0.7944872,57354.0,57353.0,1.07878962]
[1725506927897,0.54218783,57354.0,57353.0,1.07878962]
[1725506928244,0.79443332,57354.0,57353.0,1.07878962]
[1725506928453,0.53718783,57354.0,57353.0,1.07878962]
[1725506928841,0.55118783,57354.0,57353.0,1.07978962]
[1725506930294,0.528815,57354.0,57353.0,1.07978962]
[1725506931140,0.514815,57354.0,57353.0,1.07878962]
[1725506931938,0.500815,57354.0,57353.0,1.07778962]
[1725506932143,0.52818502,57354.0,57353.0,1.07778962]
[1725506932340,0.54218502,57354.0,57353.0,1.07878962]
[1725506932545,0.35,57355.0,57354.0,0.044]
[1725506932817,0.000815,57359.0,57354.0,0.044]
[1725506932818,1.12739072,57364.0,57363.0,0.07884]
[1725506933017,0.85,57364.0,57363.0,0.24904]
[1725506933168,0.85,57364.0,57363.0,0.727034]
[1725506933819,0.85,57364.0,57363.0,0.707234]
[1725506934246,0.864,57364.0,57363.0,0.708234]
[1725506935178,0.514,57364.0,57363.0,0.708234]
[1725506935472,0.514,57364.0,57363.0,0.899334]
[1725506935692,0.5,57364.0,57363.0,0.708234]
[1725506936590,0.5,57364.0,57363.0,0.296334]
[1725506936803,0.5,57364.0,57363.0,0.04704]
[1725506937011,0.5,57364.0,57363.0,0.04504]
[1725506937446,0.5,57364.0,57363.0,0.04604]
[1725506937698,0.5,57364.0,57363.0,0.04504]
[1725506938418,0.501,57364.0,57363.0,0.04604]
[1725506938843,0.5,57364.0,57363.0,0.22060026]
[1725506939299,0.5,57364.0,57363.0,0.22160026]
[1725506939494,0.014,57364.0,57363.0,0.22160026]
[1725506940114,0.514,57364.0,57363.0,0.22160026]
[1725506940316,0.528,57364.0,57363.0,0.22160026]
[1725506940566,1.1247,57364.0,57363.0,0.04604]
[1725506940775,2.3869,57364.0,57363.0,0.001]
[1725506941191,2.3889,57364.0,57363.0,0.001]
[1725506942024,0.002,57363.0,57362.0,0.83335936]
[1725506942230,1.24819871,57363.0,57362.0,0.83335936]
[1725506942433,1.44179871,57363.0,57362.0,0.83335936]
[1725506942863,3.67629871,57363.0,57362.0,0.83335936]
[1725506943298,3.69029871,57363.0,57362.0,0.83335936]
[1725506943503,3.98168943,57363.0,57362.0,0.83335936]
[1725506943741,3.69029871,57363.0,57362.0,0.83335936]
[1725506944165,3.70429871,57363.0,57362.0,0.83335936]
[1725506944391,3.96698965,57363.0,57362.0,0.83335936]
[1725506944595,3.71329871,57363.0,57362.0,0.83335936]
[1725506944817,3.71411371,57363.0,57362.0,0.83335936]
[1725506945028,11.34838888,57363.0,57362.0,0.83335936]
[1725506945234,12.14438888,57363.0,57362.0,0.83335936]
[1725506945701,12.15838888,57363.0,57362.0,0.83435936]
[1725506945891,12.17238888,57363.0,57362.0,0.83435936]
[1725506946120,12.14438888,57363.0,57362.0,0.83335936]
[1725506946306,12.14438888,57363.0,57362.0,0.63335936]
[1725506946508,12.15838888,57363.0,57362.0,0.63335936]
[1725506946661,12.17438888,57363.0,57362.0,0.63435936]
[1725506946863,12.20176193,57363.0,57362.0,0.63435936]
[1725506947290,11.34066322,57363.0,57362.0,0.63435936]
[1725506948269,11.33866322,57363.0,57362.0,0.63435936]
[1725506948474,11.34066322,57363.0,57362.0,0.63435936]
[1725506948773,11.33866322,57363.0,57362.0,0.63435936]
[1725506949175,11.34066322,57363.0,57362.0,0.63435936]
[1725506949801,11.33217917,57363.0,57362.0,0.63435936]
[1725506950242,11.33017917,57363.0,57362.0,0.63435936]
[1725506950441,14.88972766,57363.0,57362.0,0.63435936]
[1725506950893,14.89172766,57363.0,57362.0,0.63435936]
[1725506951111,14.88972766,57363.0,57362.0,0.63435936]
[1725506952182,13.61422766,57363.0,57362.0,0.63435936]
[1725506953055,13.59422766,57363.0,57362.0,0.63435936]
[1725506953298,10.51017917,57363.0,57362.0,0.63435936]
[1725506956197,10.52846239,57363.0,57362.0,0.45051337]
[1725506956960,11.29746239,57363.0,57362.0,0.45051337]
[1725506957166,11.80396239,57363.0,57362.0,0.45051337]
[1725506958456,14.57841088,57363.0,57362.0,0.45051337]
[1725506958659,13.30291088,57363.0,57362.0,0.45051337]
[1725506959105,12.19201088,57363.0,57362.0,0.45051337]
[1725506959314,10.33486239,57363.0,57362.0,0.45051337]
[1725506959527,10.61165174,57363.0,57362.0,0.45051337]
[1725506959731,10.33486239,57363.0,57362.0,0.45051337]
[1725506960443,11.57126239,57363.0,57362.0,0.45051337]
[1725506960665,10.31186239,57363.0,57362.0,0.45051337]
[1725506960886,10.0277368,57363.0,57362.0,0.45051337]
[1725506965919,9.93096239,57363.0,57362.0,0.45051337]
[1725506967341,9.93096239,57363.0,57362.0,0.45214337]
[1725506967796,9.70363662,57363.0,57362.0,0.45214337]
[1725506968201,9.70363662,57363.0,57362.0,0.62770363]
[1725506970841,9.70363662,57363.0,57362.0,0.45214337]
[1725506971995,9.70363662,57363.0,57362.0,0.44914337]
[1725506974414,0.65840705,57361.0,57359.0,1.9616]
[1725506974623,0.65840705,57361.0,57359.0,1.35432633]
[1725506974624,0.24414432,57360.0,57359.0,1.35432633]
[1725506974832,0.51734432,57360.0,57359.0,1.32305595]
[1725506975046,0.51734432,57360.0,57359.0,1.30874688]
[1725506975252,1.31734432,57360.0,57359.0,1.30874688]
[1725506975453,1.31734432,57360.0,57359.0,1.25524882]
[1725506976094,1.33134432,57360.0,57359.0,1.25524882]
[1725506976306,1.33134432,57360.0,57359.0,1.25224882]
[1725506976517,1.33134432,57360.0,57359.0,1.15367565]
[1725506976949,1.35434432,57360.0,57359.0,1.15193206]
[1725506977147,5.41749281,57360.0,57359.0,1.05336663]
[1725506977467,1.66962011,57360.0,57359.0,1.05162309]
[1725506977633,1.36654432,57360.0,57359.0,1.05162309]
[1725506977833,1.38054432,57360.0,57359.0,1.05162309]
[1725506978203,1.68182574,57360.0,57359.0,1.05162309]
[1725506978648,1.38054432,57360.0,57359.0,1.05162309]
[1725506979337,1.68182574,57360.0,57359.0,1.05162309]
[1725506979557,3.31476057,57360.0,57359.0,1.05162309]
[1725506980200,3.22761625,57360.0,57359.0,0.12627394]
[1725506980408,0.374,57359.0,57358.0,2.10702008]
[1725506980628,1.25809871,57359.0,57358.0,1.96884196]
[1725506980832,1.25809871,57359.0,57358.0,1.95684155]
[1725506981304,1.30376449,57359.0,57358.0,1.95684155]
[1725506981523,0.024,57357.0,57356.0,1.38883737]
[1725506981757,0.29796778,57357.0,57356.0,1.38709367]
[1725506981979,0.047,57357.0,57356.0,1.38709367]
[1725506982413,4.09794849,57357.0,57356.0,1.38709367]
[1725506982623,4.34891123,57357.0,57356.0,1.38709367]
[1725506982807,1.8134,57357.0,57356.0,1.38709367]
[1725506983053,1.8274,57357.0,57356.0,1.38709367]
[1725506983258,2.06436274,57357.0,57356.0,1.38709367]
[1725506983691,1.8134,57357.0,57356.0,1.38709367]
[1725506984136,1.8134,57357.0,57356.0,0.2322459]
[1725506984341,2.6134,57357.0,57356.0,0.2322459]
[1725506984758,0.024,57356.0,57355.0,0.89569415]
[1725506984959,0.047,57356.0,57355.0,0.89395039]
[1725506985376,0.847,57356.0,57355.0,0.89395039]
[1725506986838,1.49173875,57356.0,57355.0,0.89395039]
[1725506987257,0.074,57355.0,57354.0,2.02220262]
[1725506987471,0.074,57355.0,57354.0,2.02045891]
[1725506987472,0.072,57355.0,57354.0,2.02045891]
[1725506987726,0.072,57355.0,57354.0,1.64230967]
[1725506987953,2.35654849,57355.0,57354.0,1.64230967]
[1725506988848,2.37054849,57355.0,57354.0,1.64230967]
[1725506989059,2.39354849,57355.0,57354.0,1.64230967]
[1725506989903,2.16254194,57355.0,57354.0,1.64230967]
[1725506990027,1.3492,57355.0,57354.0,1.09201017]
[1725506990473,1.2992,57355.0,57354.0,1.09201017]
[1725506991227,2.0992,57355.0,57354.0,1.09201017]
[1725506991472,2.0852,57355.0,57354.0,1.09201017]
[1725506992093,2.0992,57355.0,57354.0,1.09201017]
[1725506992637,2.0992,57355.0,57354.0,1.08764017]
[1725506994993,5.99114849,57355.0,57354.0,1.08764017]
[1725506995198,1.2992,57355.0,57354.0,1.08764017]
[1725506996227,2.0992,57355.0,57354.0,1.08764017]
[1725506996480,1.84761521,57355.0,57354.0,1.08764017]
[1725506998552,1.87061521,57355.0,57354.0,1.08764017]
[1725506999458,1.87261521,57355.0,57354.0,1.08764017]
[1725506999674,1.87061521,57355.0,57354.0,1.08764017]
[1725507000783,2.12166778,57355.0,57354.0,0.84427165]
[1725507001001,0.352,57353.0,57352.0,2.04822757]
[1725507001250,2.73171392,57355.0,57353.0,1.69622757]
[1725507001510,0.023,57354.0,57353.0,1.45285905]
[1725507001765,0.27398458,57354.0,57353.0,0.16323056]
[1725507002009,0.373,57354.0,57353.0,0.16323056]
[1725507002273,1.40661521,57354.0,57353.0,0.16323056]
[1725507002505,2.20763452,57354.0,57353.0,0.16323056]
[1725507002734,2.20763452,57354.0,57353.0,0.14923056]
[1725507002958,2.20763452,57354.0,57353.0,0.54603056]
[1725507003893,2.20763452,57354.0,57353.0,0.30266204]
[1725507003894,2.30763452,57354.0,57353.0,0.30266204]
[1725507004192,1.598477,57352.0,57351.0,1.5359622]
[1725507004436,2.84216431,57352.0,57351.0,0.24460023]
[1725507004689,3.94064231,57352.0,57351.0,0.13969462]
[1725507004910,1.47982493,57351.0,57350.0,1.88875205]
[1725507005135,2.80755014,57351.0,57350.0,1.88875205]
[1725507005364,3.31884645,57351.0,57350.0,1.88875205]
[1725507005574,3.31884645,57351.0,57350.0,1.88866357]
[1725507005797,3.31884645,57351.0,57350.0,1.78595308]
[1725507006011,3.31884645,57351.0,57350.0,1.42707908]
[1725507006229,3.31884645,57351.0,57349.0,1.78123]
[1725507006230,1.91832199,57350.0,57349.0,1.78123]
[1725507006438,0.94186199,57350.0,57349.0,1.99183026]
[1725507006655,1.7972833,57350.0,57349.0,1.49227]
[1725507006879,0.610297,57349.0,57348.0,1.84965]
[1725507007103,0.610297,57349.0,57348.0,2.42705]
[1725507007104,1.91219963,57349.0,57348.0,2.42705]
[1725507007332,2.03527794,57349.0,57348.0,1.29305]
[1725507007540,1.16407259,57348.0,57347.0,1.60914]
[1725507007751,1.65231859,57348.0,57347.0,1.630554]
[1725507007968,2.26391501,57348.0,57347.0,0.195954]
[1725507008171,1.342698,57347.0,57346.0,1.4761]
[1725507008344,1.586825,57347.0,57346.0,1.4761]
[1725507008559,1.586825,57347.0,57339.0,0.01]
[1725507008560,1.58811342,57347.0,57342.0,0.03504]
[1725507008760,0.08701959,57348.0,57345.0,0.611869]
[1725507008761,1.90394242,57346.0,57345.0,0.611869]
[1725507008966,0.122068,57345.0,57344.0,0.28227526]
[1725507009179,0.244149,57342.0,57341.0,1.8473]
[1725507009387,1.08054956,57342.0,57341.0,1.8703]
[1725507009590,0.610382,57341.0,57340.0,2.3514]
[1725507009798,1.342841,57341.0,57340.0,2.177]
[1725507010017,1.342841,57341.0,57340.0,0.57056026]
[1725507010018,1.586994,57341.0,57340.0,0.57056026]
[1725507010233,1.342863,57340.0,57339.0,1.3964]
[1725507010438,1.31496661,57340.0,57339.0,1.4064]
[1725507010642,1.55912361,57340.0,57339.0,1.4064]
[1725507010873,1.57594322,57340.0,57339.0,1.234]
[1725507011069,1.58702,57340.0,57339.0,1.234]
[1725507011277,1.68702,57340.0,57339.0,1.234]
[1725507011500,1.68702,57340.0,57339.0,1.26904]
[1725507011741,1.68702,57340.0,57339.0,1.1874]
[1725507011947,1.66560275,57340.0,57339.0,1.11764]
[1725507012156,1.67960275,57340.0,57339.0,0.26294484]
[1725507012364,1.70102,57340.0,57339.0,0.26294484]
[1725507012577,1.70114783,57340.0,57339.0,0.26294484]
[1725507012788,1.68714783,57340.0,57339.0,0.22706384]
[1725507012998,1.68714783,57340.0,57339.0,0.08753984]
[1725507013252,1.45699083,57340.0,57339.0,0.09853984]
[1725507013501,1.45827925,57340.0,57339.0,0.09853984]
[1725507013707,1.70243625,57340.0,57338.0,2.36839684]
[1725507013957,1.44430125,57339.0,57338.0,2.33367484]
[1725507014338,1.68846225,57339.0,57338.0,2.33367484]